[Event "Late Titled Tuesday Blitz February 8 2022"]
[White "Ozen, Deniz"]
[Black "Paravyan, David"]
[WhiteFideId "6349196"]
[BlackFideId "4194985"]
[WhiteElo "2326"]
[BlackElo "2569"]
[Result "1-0"]
[Round "08"]
[TimeControl "180+1"]
[Date "2022.02.08"]
[WhiteClock "0:00:10"]
[BlackClock "0:00:08"]

1. d4 {[%clk 0:03:00]}  Nf6 {[%clk 0:02:59]} 2. Bf4 {[%clk 0:03:00]}  g6 {[%clk 0:02:57]} 3. Nc3 {[%clk 0:03:00]}  d5 {[%clk 0:02:57]} 4. e3 {[%clk 0:03:01]}  Bg7 {[%clk 0:02:58]} 5. h4 {[%clk 0:03:01]}  h5 {[%clk 0:02:56]} 6. Be2 {[%clk 0:02:59]}  O-O {[%clk 0:02:55]} 7. Nf3 {[%clk 0:02:59]}  c5 {[%clk 0:02:55]} 8. dxc5 {[%clk 0:02:58]}  Qa5 {[%clk 0:02:49]} 9. O-O {[%clk 0:02:57]}  Qxc5 {[%clk 0:02:45]} 10. Nb5 {[%clk 0:02:58]}  Na6 {[%clk 0:02:34]} 11. Be5 {[%clk 0:02:53]}  Bd7 {[%clk 0:02:29]} 12. a4 {[%clk 0:02:52]}  Ng4 {[%clk 0:02:05]} 13. Bxg7 {[%clk 0:02:40]}  Kxg7 {[%clk 0:02:06]} 14. Qd4+ {[%clk 0:02:37]}  Qxd4 {[%clk 0:02:00]} 15. exd4 {[%clk 0:02:38]}  Rfc8 {[%clk 0:01:54]} 16. c3 {[%clk 0:02:38]}  Nc7 {[%clk 0:01:54]} 17. Rfe1 {[%clk 0:02:36]}  Ne8 {[%clk 0:01:43]} 18. Bd3 {[%clk 0:02:32]}  e6 {[%clk 0:01:29]} 19. Ne5 {[%clk 0:02:24]}  Ngf6 {[%clk 0:01:29]} 20. a5 {[%clk 0:02:14]}  a6 {[%clk 0:01:29]} 21. Na3 {[%clk 0:02:11]}  Nd6 {[%clk 0:01:29]} 22. Nxd7 {[%clk 0:02:03]}  Nxd7 {[%clk 0:01:29]} 23. Nc2 {[%clk 0:02:03]}  Nf6 {[%clk 0:01:26]} 24. Nb4 {[%clk 0:02:03]}  Rc7 {[%clk 0:01:26]} 25. Bf1 {[%clk 0:02:01]}  Rd8 {[%clk 0:01:25]} 26. f3 {[%clk 0:01:56]}  Nc4 {[%clk 0:01:24]} 27. Ra2 {[%clk 0:01:52]}  Nd6 {[%clk 0:01:19]} 28. Bd3 {[%clk 0:01:48]}  Rdc8 {[%clk 0:01:17]} 29. Ra3 {[%clk 0:01:33]}  Rh8 {[%clk 0:01:11]} 30. Nc2 {[%clk 0:01:23]}  Nd7 {[%clk 0:01:02]} 31. Ne3 {[%clk 0:01:19]}  Nb8 {[%clk 0:01:01]} 32. Rb3 {[%clk 0:01:15]}  Nc6 {[%clk 0:01:01]} 33. Ra1 {[%clk 0:01:15]}  Na7 {[%clk 0:01:00]} 34. Rb4 {[%clk 0:01:07]}  Nab5 {[%clk 0:00:59]} 35. Nc2 {[%clk 0:01:06]}  Rhc8 {[%clk 0:00:53]} 36. Na3 {[%clk 0:01:03]}  Na7 {[%clk 0:00:43]} 37. Nc2 {[%clk 0:01:03]}  Rd8 {[%clk 0:00:40]} 38. Ne3 {[%clk 0:00:58]}  Nc6 {[%clk 0:00:37]} 39. Rb3 {[%clk 0:00:54]}  Na7 {[%clk 0:00:36]} 40. Nc2 {[%clk 0:00:48]}  Nc6 {[%clk 0:00:32]} 41. Ne3 {[%clk 0:00:42]}  Na7 {[%clk 0:00:27]} 42. Kf2 {[%clk 0:00:41]}  Nab5 {[%clk 0:00:27]} 43. Rb4 {[%clk 0:00:39]}  Rdc8 {[%clk 0:00:27]} 44. g4 {[%clk 0:00:36]}  Rh8 {[%clk 0:00:27]} 45. g5 {[%clk 0:00:36]}  Rhc8 {[%clk 0:00:27]} 46. Ke2 {[%clk 0:00:32]}  Rd8 {[%clk 0:00:25]} 47. Kf2 {[%clk 0:00:26]}  Re8 {[%clk 0:00:25]} 48. Re1 {[%clk 0:00:23]}  Rce7 {[%clk 0:00:25]} 49. Rb3 {[%clk 0:00:19]}  Na7 {[%clk 0:00:19]} 50. Rb4 {[%clk 0:00:16]}  Nc6 {[%clk 0:00:19]} 51. Ra4 {[%clk 0:00:17]}  Rd7 {[%clk 0:00:17]} 52. Ra3 {[%clk 0:00:16]}  Red8 {[%clk 0:00:17]} 53. Rea1 {[%clk 0:00:15]}  Nc8 {[%clk 0:00:16]} 54. f4 {[%clk 0:00:13]}  Nd6 {[%clk 0:00:16]} 55. Rb3 {[%clk 0:00:13]}  Ne7 {[%clk 0:00:16]} 56. Rba3 {[%clk 0:00:13]}  Rc7 {[%clk 0:00:16]} 57. Rb3 {[%clk 0:00:13]}  Rdc8 {[%clk 0:00:17]} 58. Rba3 {[%clk 0:00:13]}  Kf8 {[%clk 0:00:17]} 59. Rb3 {[%clk 0:00:14]}  Ke8 {[%clk 0:00:17]} 60. Rb6 {[%clk 0:00:13]}  Kd7 {[%clk 0:00:17]} 61. Rb3 {[%clk 0:00:13]}  Rc6 {[%clk 0:00:16]} 62. Rba3 {[%clk 0:00:13]}  Kc7 {[%clk 0:00:16]} 63. Rb3 {[%clk 0:00:13]}  Kb8 {[%clk 0:00:17]} 64. Rba3 {[%clk 0:00:14]}  Ka7 {[%clk 0:00:17]} 65. Rb3 {[%clk 0:00:14]}  R6c7 {[%clk 0:00:18]} 66. Rba3 {[%clk 0:00:14]}  Rc6 {[%clk 0:00:18]} 67. Rb3 {[%clk 0:00:15]}  Rd8 {[%clk 0:00:19]} 68. Rba3 {[%clk 0:00:15]}  Rcc8 {[%clk 0:00:19]} 69. Rb3 {[%clk 0:00:15]}  Rd7 {[%clk 0:00:20]} 70. Rba3 {[%clk 0:00:16]}  Nc6 {[%clk 0:00:20]} 71. Rb3 {[%clk 0:00:15]}  Rdc7 {[%clk 0:00:19]} 72. Rba3 {[%clk 0:00:16]}  Rg8 {[%clk 0:00:19]} 73. Rb3 {[%clk 0:00:16]}  Re8 {[%clk 0:00:19]} 74. Rba3 {[%clk 0:00:16]}  Rf8 {[%clk 0:00:20]} 75. Rb3 {[%clk 0:00:17]}  Nb8 {[%clk 0:00:20]} 76. Kg2 {[%clk 0:00:13]}  Nd7 {[%clk 0:00:19]} 77. Rba3 {[%clk 0:00:13]}  Rg8 {[%clk 0:00:19]} 78. Rb3 {[%clk 0:00:13]}  Rf8 {[%clk 0:00:18]} 79. Kf2 {[%clk 0:00:14]}  f5 {[%clk 0:00:17]} 80. Kg2 {[%clk 0:00:11]}  Re8 {[%clk 0:00:16]} 81. Rba3 {[%clk 0:00:12]}  Nb8 {[%clk 0:00:16]} 82. Rb3 {[%clk 0:00:12]}  Nc6 {[%clk 0:00:17]} 83. Rb6 {[%clk 0:00:11]}  Rd8 {[%clk 0:00:16]} 84. Rb3 {[%clk 0:00:11]}  Ne4 {[%clk 0:00:15]} 85. Rba3 {[%clk 0:00:09]}  Rdc8 {[%clk 0:00:14]} 86. Rb3 {[%clk 0:00:09]}  Nb8 {[%clk 0:00:14]} 87. Rba3 {[%clk 0:00:09]}  Nc6 {[%clk 0:00:15]} 88. Rb3 {[%clk 0:00:08]}  Re7 {[%clk 0:00:15]} 89. Rba3 {[%clk 0:00:08]}  Rcc7 {[%clk 0:00:16]} 90. b4 {[%clk 0:00:08]}  Nd6 {[%clk 0:00:15]} 91. Rb1 {[%clk 0:00:07]}  Nb8 {[%clk 0:00:11]} 92. b5 {[%clk 0:00:07]}  axb5 {[%clk 0:00:12]} 93. Bxb5 {[%clk 0:00:08]}  Ne4 {[%clk 0:00:08]} 94. c4 {[%clk 0:00:05]}  Nd2 {[%clk 0:00:08]} 95. Rb4 {[%clk 0:00:05]}  dxc4 {[%clk 0:00:08]} 96. Nxc4 {[%clk 0:00:06]}  Nxc4 {[%clk 0:00:09]} 97. Rxc4 {[%clk 0:00:07]}  Rxc4 {[%clk 0:00:09]} 98. Bxc4 {[%clk 0:00:07]}  Nc6 {[%clk 0:00:08]} 99. d5 {[%clk 0:00:06]}  exd5 {[%clk 0:00:08]} 100. Bxd5 {[%clk 0:00:07]}  Nb4 {[%clk 0:00:08]} 101. Bf3 {[%clk 0:00:06]}  Nc2 {[%clk 0:00:07]} 102. Rc3 {[%clk 0:00:03]}  Ne1+ {[%clk 0:00:07]} 103. Kg3 {[%clk 0:00:04]}  Ka6 {[%clk 0:00:07]} 104. Ra3 {[%clk 0:00:02]}  Nxf3 {[%clk 0:00:07]} 105. Kxf3 {[%clk 0:00:03]}  Re6 {[%clk 0:00:06]} 106. Rb3 {[%clk 0:00:04]}  Rc6 {[%clk 0:00:04]} 107. Kg3 {[%clk 0:00:02]}  Re6 {[%clk 0:00:05]} 108. Kf3 {[%clk 0:00:02]}  Ka7 {[%clk 0:00:05]} 109. Kg3 {[%clk 0:00:03]}  Ra6 {[%clk 0:00:05]} 110. Rb5 {[%clk 0:00:02]}  Rd6 {[%clk 0:00:05]} 111. Rb3 {[%clk 0:00:02]}  Ka6 {[%clk 0:00:05]} 112. Kf3 {[%clk 0:00:03]}  Rc6 {[%clk 0:00:05]} 113. Kg3 {[%clk 0:00:03]}  Ka7 {[%clk 0:00:06]} 114. Kf3 {[%clk 0:00:03]}  Kb8 {[%clk 0:00:06]} 115. Ke3 {[%clk 0:00:02]}  Kc7 {[%clk 0:00:07]} 116. Rb5 {[%clk 0:00:03]}  Re6+ {[%clk 0:00:07]} 117. Kf3 {[%clk 0:00:02]}  Rd6 {[%clk 0:00:08]} 118. Ke3 {[%clk 0:00:02]}  Re6+ {[%clk 0:00:08]} 119. Kf3 {[%clk 0:00:02]}  Rc6 {[%clk 0:00:08]} 120. Ke3 {[%clk 0:00:03]}  Rc3+ {[%clk 0:00:09]} 121. Kd4 {[%clk 0:00:03]}  Rc6 {[%clk 0:00:06]} 122. Rc5 {[%clk 0:00:04]}  Kd7 {[%clk 0:00:01]} 123. Rxc6 {[%clk 0:00:04]}  Kxc6 {[%clk 0:00:02]} 124. Ke5 {[%clk 0:00:05]}  Kb5 {[%clk 0:00:03]} 125. Kf6 {[%clk 0:00:05]}  Kxa5 {[%clk 0:00:04]} 126. Kxg6 {[%clk 0:00:06]}  b5 {[%clk 0:00:05]} 127. Kh7 {[%clk 0:00:07]}  b4 {[%clk 0:00:05]} 128. g6 {[%clk 0:00:08]}  b3 {[%clk 0:00:06]} 129. g7 {[%clk 0:00:09]}  b2 {[%clk 0:00:07]} 130. g8=Q {[%clk 0:00:10]}  b1=Q {[%clk 0:00:08]} 131. Qa8+ {[%clk 0:00:10]} 1-0


[Site "https://www.chess.com"]

[Event "Late Titled Tuesday Blitz February 8 2022"]
[White "Pavlidou, Ekaterini"]
[Black "Glavina, Pablo"]
[WhiteFideId "4213262"]
[BlackFideId "100234"]
[WhiteElo "2127"]
[BlackElo "2369"]
[Result "0-1"]
[Round "08"]
[TimeControl "180+1"]
[Date "2022.02.09"]
[WhiteClock "0:00:16"]
[BlackClock "0:01:27"]

1. d4 {[%clk 0:03:00]}  d5 {[%clk 0:02:59]} 2. c4 {[%clk 0:03:01]}  e6 {[%clk 0:02:59]} 3. Nc3 {[%clk 0:02:58]}  Nf6 {[%clk 0:02:59]} 4. cxd5 {[%clk 0:02:58]}  exd5 {[%clk 0:02:58]} 5. Bg5 {[%clk 0:02:58]}  Be7 {[%clk 0:02:58]} 6. e3 {[%clk 0:02:58]}  O-O {[%clk 0:02:58]} 7. Bd3 {[%clk 0:02:57]}  c6 {[%clk 0:02:56]} 8. Nf3 {[%clk 0:02:57]}  Nbd7 {[%clk 0:02:56]} 9. O-O {[%clk 0:02:56]}  Re8 {[%clk 0:02:56]} 10. Qc2 {[%clk 0:02:56]}  Nf8 {[%clk 0:02:56]} 11. h3 {[%clk 0:02:55]}  g6 {[%clk 0:02:49]} 12. Ne5 {[%clk 0:02:54]}  Ne6 {[%clk 0:02:47]} 13. Bh6 {[%clk 0:02:54]}  Nd7 {[%clk 0:02:39]} 14. f4 {[%clk 0:02:53]}  Nxe5 {[%clk 0:02:39]} 15. dxe5 {[%clk 0:02:50]}  d4 {[%clk 0:02:38]} 16. exd4 {[%clk 0:02:35]}  Nxd4 {[%clk 0:02:38]} 17. Qd1 {[%clk 0:02:23]}  Nf5 {[%clk 0:02:35]} 18. Bxf5 {[%clk 0:02:07]}  Bxf5 {[%clk 0:02:34]} 19. Qf3 {[%clk 0:02:01]}  Qd3 {[%clk 0:02:31]} 20. Qxd3 {[%clk 0:01:58]}  Bxd3 {[%clk 0:02:32]} 21. Rf3 {[%clk 0:01:58]}  Rad8 {[%clk 0:02:29]} 22. g4 {[%clk 0:01:56]}  b5 {[%clk 0:02:24]} 23. Rd1 {[%clk 0:01:52]}  Bc2 {[%clk 0:02:24]} 24. Rc1 {[%clk 0:01:50]}  Bd3 {[%clk 0:02:20]} 25. Rd1 {[%clk 0:01:48]}  Bc4 {[%clk 0:02:19]} 26. f5 {[%clk 0:01:41]}  Rxd1+ {[%clk 0:02:12]} 27. Nxd1 {[%clk 0:01:41]}  Bc5+ {[%clk 0:02:12]} 28. Be3 {[%clk 0:01:14]}  Rxe5 {[%clk 0:02:12]} 29. Bxc5 {[%clk 0:01:11]}  Rxc5 {[%clk 0:02:09]} 30. b3 {[%clk 0:01:10]}  Be2 {[%clk 0:02:08]} 31. Rc3 {[%clk 0:01:10]}  Rxc3 {[%clk 0:01:55]} 32. Nxc3 {[%clk 0:01:10]}  Bd3 {[%clk 0:01:55]} 33. f6 {[%clk 0:01:06]}  Kf8 {[%clk 0:01:54]} 34. Kf2 {[%clk 0:01:06]}  h5 {[%clk 0:01:49]} 35. g5 {[%clk 0:01:04]}  h4 {[%clk 0:01:48]} 36. Nd1 {[%clk 0:00:59]}  Bf5 {[%clk 0:01:46]} 37. Kg2 {[%clk 0:00:58]}  Ke8 {[%clk 0:01:46]} 38. Ne3 {[%clk 0:00:56]}  Be6 {[%clk 0:01:46]} 39. Nc2 {[%clk 0:00:52]}  c5 {[%clk 0:01:44]} 40. Ne1 {[%clk 0:00:46]}  c4 {[%clk 0:01:42]} 41. bxc4 {[%clk 0:00:44]}  Bxc4 {[%clk 0:01:37]} 42. a3 {[%clk 0:00:44]}  a5 {[%clk 0:01:37]} 43. Kf3 {[%clk 0:00:44]}  Be6 {[%clk 0:01:36]} 44. Kf4 {[%clk 0:00:39]}  Kd7 {[%clk 0:01:35]} 45. Nf3 {[%clk 0:00:38]}  b4 {[%clk 0:01:31]} 46. axb4 {[%clk 0:00:37]}  a4 {[%clk 0:01:31]} 47. Ne5+ {[%clk 0:00:31]}  Kd6 {[%clk 0:01:31]} 48. Nd3 {[%clk 0:00:30]}  a3 {[%clk 0:01:30]} 49. Nc1 {[%clk 0:00:21]}  Bxh3 {[%clk 0:01:29]} 50. Nb3 {[%clk 0:00:16]}  Be6 {[%clk 0:01:28]} 51. Na1 {[%clk 0:00:16]}  a2 {[%clk 0:01:27]} 0-1


[Site "https://www.chess.com"]

[Event "Late Titled Tuesday Blitz February 8 2022"]
[White "Pichot, Alan"]
[Black "Plotkin, Mark"]
[WhiteFideId "110973"]
[BlackFideId "2611651"]
[WhiteElo "2543"]
[BlackElo "2178"]
[Result "0-1"]
[Round "08"]
[TimeControl "180+1"]
[Date "2022.02.08"]
[WhiteClock "0:00:19"]
[BlackClock "0:01:19"]

1. e4 {[%clk 0:03:00]}  e5 {[%clk 0:02:59]} 2. Nf3 {[%clk 0:02:58]}  Nc6 {[%clk 0:02:59]} 3. Bb5 {[%clk 0:02:59]}  a6 {[%clk 0:02:58]} 4. Ba4 {[%clk 0:02:58]}  g6 {[%clk 0:02:56]} 5. Bxc6 {[%clk 0:02:56]}  dxc6 {[%clk 0:02:56]} 6. c3 {[%clk 0:02:56]}  Bg7 {[%clk 0:02:56]} 7. d4 {[%clk 0:02:54]}  exd4 {[%clk 0:02:54]} 8. cxd4 {[%clk 0:02:55]}  Ne7 {[%clk 0:02:51]} 9. h3 {[%clk 0:02:50]}  O-O {[%clk 0:02:50]} 10. O-O {[%clk 0:02:50]}  Re8 {[%clk 0:02:45]} 11. Nc3 {[%clk 0:02:44]}  Be6 {[%clk 0:02:42]} 12. Bf4 {[%clk 0:02:43]}  Nc8 {[%clk 0:02:36]} 13. Qd2 {[%clk 0:02:38]}  Nd6 {[%clk 0:02:35]} 14. Rad1 {[%clk 0:02:35]}  Qe7 {[%clk 0:02:23]} 15. Rfe1 {[%clk 0:02:33]}  Rad8 {[%clk 0:02:22]} 16. Bg5 {[%clk 0:02:27]}  f6 {[%clk 0:02:21]} 17. Bf4 {[%clk 0:02:27]}  Qf7 {[%clk 0:02:21]} 18. b3 {[%clk 0:02:24]}  Nb5 {[%clk 0:02:17]} 19. Nxb5 {[%clk 0:02:22]}  axb5 {[%clk 0:02:16]} 20. Qc2 {[%clk 0:02:15]}  g5 {[%clk 0:02:10]} 21. Bg3 {[%clk 0:02:14]}  g4 {[%clk 0:02:11]} 22. hxg4 {[%clk 0:02:11]}  Bxg4 {[%clk 0:02:12]} 23. Re3 {[%clk 0:02:04]}  f5 {[%clk 0:02:08]} 24. exf5 {[%clk 0:01:45]}  Bxf5 {[%clk 0:02:09]} 25. Qe2 {[%clk 0:01:38]}  Bg4 {[%clk 0:02:06]} 26. Re1 {[%clk 0:01:35]}  Rxe3 {[%clk 0:02:01]} 27. fxe3 {[%clk 0:01:36]}  Rf8 {[%clk 0:01:56]} 28. Rf1 {[%clk 0:01:35]}  Qg6 {[%clk 0:01:53]} 29. Bxc7 {[%clk 0:01:11]}  Qe4 {[%clk 0:01:53]} 30. Rf2 {[%clk 0:00:56]}  Bh6 {[%clk 0:01:50]} 31. Nd2 {[%clk 0:00:49]}  Bxe3 {[%clk 0:01:36]} 32. Kh2 {[%clk 0:00:19]}  Rxf2 {[%clk 0:01:19]} 0-1


[Site "https://www.chess.com"]

[Event "Late Titled Tuesday Blitz February 8 2022"]
[White "Pinheiro, Iung Alicio de O."]
[Black "Yuan, Qingyu"]
[WhiteFideId "2104350"]
[BlackFideId "8609772"]
[WhiteElo "2597"]
[BlackElo "2359"]
[Result "1-0"]
[Round "08"]
[TimeControl "180+1"]
[Date "2022.02.08"]
[WhiteClock "0:00:10"]
[BlackClock "0:00:03"]

1. e4 {[%clk 0:02:59]}  c6 {[%clk 0:02:59]} 2. d4 {[%clk 0:02:59]}  d5 {[%clk 0:03:00]} 3. e5 {[%clk 0:02:58]}  c5 {[%clk 0:03:00]} 4. dxc5 {[%clk 0:02:58]}  e6 {[%clk 0:03:00]} 5. a3 {[%clk 0:02:58]}  Bxc5 {[%clk 0:03:01]} 6. Qg4 {[%clk 0:02:56]}  Ne7 {[%clk 0:02:59]} 7. b4 {[%clk 0:02:48]}  h5 {[%clk 0:02:58]} 8. Qg3 {[%clk 0:02:44]}  Nf5 {[%clk 0:02:54]} 9. Qf4 {[%clk 0:02:41]}  Bd4 {[%clk 0:02:42]} 10. c3 {[%clk 0:02:40]}  Bb6 {[%clk 0:02:32]} 11. Bd3 {[%clk 0:02:37]}  Nc6 {[%clk 0:02:27]} 12. Nf3 {[%clk 0:02:36]}  Bc7 {[%clk 0:02:16]} 13. Bxf5 {[%clk 0:02:22]}  exf5 {[%clk 0:02:16]} 14. O-O {[%clk 0:02:23]}  f6 {[%clk 0:01:49]} 15. Qg3 {[%clk 0:02:12]}  Kf7 {[%clk 0:01:43]} 16. e6+ {[%clk 0:01:55]}  Bxe6 {[%clk 0:01:40]} 17. Bf4 {[%clk 0:01:55]}  Rc8 {[%clk 0:01:25]} 18. Nbd2 {[%clk 0:01:51]}  h4 {[%clk 0:01:17]} 19. Bxc7 {[%clk 0:01:42]}  Rxc7 {[%clk 0:01:11]} 20. Qf4 {[%clk 0:01:30]}  g5 {[%clk 0:01:11]} 21. Qe3 {[%clk 0:01:30]}  Qd6 {[%clk 0:00:57]} 22. Nb3 {[%clk 0:01:28]}  Ne5 {[%clk 0:00:54]} 23. Rfe1 {[%clk 0:00:56]}  Nc4 {[%clk 0:00:46]} 24. Qe2 {[%clk 0:00:53]}  Bc8 {[%clk 0:00:40]} 25. Nc5 {[%clk 0:00:45]}  g4 {[%clk 0:00:27]} 26. Nd4 {[%clk 0:00:45]}  g3 {[%clk 0:00:27]} 27. fxg3 {[%clk 0:00:41]}  hxg3 {[%clk 0:00:27]} 28. h3 {[%clk 0:00:42]}  Ne5 {[%clk 0:00:21]} 29. Rf1 {[%clk 0:00:37]}  b6 {[%clk 0:00:22]} 30. Nd3 {[%clk 0:00:32]}  Ba6 {[%clk 0:00:19]} 31. Nxe5+ {[%clk 0:00:31]}  fxe5 {[%clk 0:00:15]} 32. Rxf5+ {[%clk 0:00:25]}  Kg8 {[%clk 0:00:15]} 33. Qg4+ {[%clk 0:00:25]}  Rg7 {[%clk 0:00:13]} 34. Rg5 {[%clk 0:00:24]}  Qf6 {[%clk 0:00:03]} 35. Rxg7+ {[%clk 0:00:20]}  Qxg7 {[%clk 0:00:04]} 36. Qe6+ {[%clk 0:00:16]}  Qf7 {[%clk 0:00:04]} 37. Qg4+ {[%clk 0:00:14]}  Kh7 {[%clk 0:00:03]} 38. Nf3 {[%clk 0:00:11]}  Qf4 {[%clk 0:00:02]} 39. Qh5+ {[%clk 0:00:10]}  Kg7 {[%clk 0:00:03]} 40. Qxe5+ {[%clk 0:00:09]}  Qxe5 {[%clk 0:00:03]} 41. Nxe5 {[%clk 0:00:10]}  Re8 {[%clk 0:00:04]} 42. Nf3 {[%clk 0:00:09]}  Re3 {[%clk 0:00:04]} 43. Rc1 {[%clk 0:00:09]}  Bc4 {[%clk 0:00:04]} 44. Nd4 {[%clk 0:00:09]}  Rd3 {[%clk 0:00:04]} 45. a4 {[%clk 0:00:09]}  Kg6 {[%clk 0:00:04]} 46. Nc6 {[%clk 0:00:09]}  a6 {[%clk 0:00:04]} 47. Ne5+ {[%clk 0:00:09]}  Kf5 {[%clk 0:00:04]} 48. Nxd3 {[%clk 0:00:10]}  Bxd3 {[%clk 0:00:05]} 49. Rd1 {[%clk 0:00:11]}  Ke4 {[%clk 0:00:05]} 50. Re1+ {[%clk 0:00:11]}  Kf4 {[%clk 0:00:04]} 51. Re6 {[%clk 0:00:11]}  b5 {[%clk 0:00:03]} 52. a5 {[%clk 0:00:11]}  Be4 {[%clk 0:00:02]} 53. Rxa6 {[%clk 0:00:12]}  Ke3 {[%clk 0:00:03]} 54. Rb6 {[%clk 0:00:12]}  d4 {[%clk 0:00:02]} 55. cxd4 {[%clk 0:00:12]}  Bd3 {[%clk 0:00:03]} 56. a6 {[%clk 0:00:10]} 1-0


[Site "https://www.chess.com"]

[Event "Late Titled Tuesday Blitz February 8 2022"]
[White "Pulvett Marin, Daniel Eduardo"]
[Black "Ibarra Jerez, Jose Carlos"]
[WhiteFideId "3900410"]
[BlackFideId "2226332"]
[WhiteElo "2413"]
[BlackElo "2626"]
[Result "0-1"]
[Round "08"]
[TimeControl "180+1"]
[Date "2022.02.08"]
[WhiteClock "0:00:21"]
[BlackClock "0:00:26"]

1. d4 {[%clk 0:03:00]}  Nf6 {[%clk 0:02:55]} 2. c4 {[%clk 0:03:00]}  d6 {[%clk 0:02:55]} 3. Nc3 {[%clk 0:02:55]}  e5 {[%clk 0:02:55]} 4. d5 {[%clk 0:02:55]}  Nbd7 {[%clk 0:02:55]} 5. e4 {[%clk 0:02:54]}  Nc5 {[%clk 0:02:56]} 6. f3 {[%clk 0:02:50]}  a5 {[%clk 0:02:56]} 7. Be3 {[%clk 0:02:49]}  Nfd7 {[%clk 0:02:57]} 8. Qd2 {[%clk 0:02:44]}  Be7 {[%clk 0:02:57]} 9. O-O-O {[%clk 0:02:42]}  h6 {[%clk 0:02:57]} 10. g3 {[%clk 0:02:36]}  a4 {[%clk 0:02:50]} 11. Kb1 {[%clk 0:02:27]}  c6 {[%clk 0:02:49]} 12. h4 {[%clk 0:02:21]}  Qa5 {[%clk 0:02:47]} 13. Nge2 {[%clk 0:02:10]}  Nb6 {[%clk 0:02:40]} 14. Nc1 {[%clk 0:02:09]}  cxd5 {[%clk 0:02:30]} 15. cxd5 {[%clk 0:02:10]}  Bd7 {[%clk 0:02:28]} 16. Rh2 {[%clk 0:02:00]}  O-O {[%clk 0:02:24]} 17. g4 {[%clk 0:01:50]}  Rfc8 {[%clk 0:02:22]} 18. a3 {[%clk 0:01:43]}  Nb3 {[%clk 0:02:10]} 19. Nxb3 {[%clk 0:01:39]}  axb3 {[%clk 0:02:11]} 20. Rc1 {[%clk 0:01:38]}  Nc4 {[%clk 0:01:49]} 21. Bxc4 {[%clk 0:01:36]}  Rxc4 {[%clk 0:01:50]} 22. Ne2 {[%clk 0:01:25]}  Qa6 {[%clk 0:01:36]} 23. Rhh1 {[%clk 0:01:20]}  Rxc1+ {[%clk 0:01:21]} 24. Nxc1 {[%clk 0:01:21]}  Qc4 {[%clk 0:01:15]} 25. Qd3 {[%clk 0:01:16]}  Qxd3+ {[%clk 0:01:07]} 26. Nxd3 {[%clk 0:01:17]}  Bb5 {[%clk 0:01:08]} 27. Nc1 {[%clk 0:01:14]}  Bc4 {[%clk 0:01:08]} 28. Bd2 {[%clk 0:01:07]}  Kf8 {[%clk 0:00:58]} 29. h5 {[%clk 0:01:02]}  Ke8 {[%clk 0:00:58]} 30. Rg1 {[%clk 0:00:58]}  Bh4 {[%clk 0:00:46]} 31. g5 {[%clk 0:00:53]}  hxg5 {[%clk 0:00:45]} 32. Bxg5 {[%clk 0:00:54]}  Bf2 {[%clk 0:00:45]} 33. Rg2 {[%clk 0:00:51]}  Bd4 {[%clk 0:00:45]} 34. h6 {[%clk 0:00:42]}  gxh6 {[%clk 0:00:44]} 35. Bxh6 {[%clk 0:00:43]}  Ke7 {[%clk 0:00:39]} 36. Rg7 {[%clk 0:00:39]}  Rh8 {[%clk 0:00:35]} 37. Bg5+ {[%clk 0:00:29]}  Kf8 {[%clk 0:00:35]} 38. Bf6 {[%clk 0:00:21]}  Rh1 {[%clk 0:00:26]} 0-1


[Site "https://www.chess.com"]

[Event "Late Titled Tuesday Blitz February 8 2022"]
[White "Quirke, Jeffrey"]
[Black "Garagulya, Konstantin"]
[WhiteFideId "2013029"]
[BlackFideId "4128931"]
[WhiteElo "2268"]
[BlackElo "2329"]
[Result "0-1"]
[Round "08"]
[TimeControl "180+1"]
[Date "2022.02.09"]
[WhiteClock "0:00:09"]
[BlackClock "0:00:13"]

1. d4 {[%clk 0:03:00]}  Nf6 {[%clk 0:02:55]} 2. c4 {[%clk 0:03:00]}  e6 {[%clk 0:02:54]} 3. Nc3 {[%clk 0:03:00]}  d5 {[%clk 0:02:54]} 4. cxd5 {[%clk 0:03:00]}  exd5 {[%clk 0:02:53]} 5. Bg5 {[%clk 0:02:59]}  Be7 {[%clk 0:02:54]} 6. e3 {[%clk 0:03:00]}  O-O {[%clk 0:02:54]} 7. Bd3 {[%clk 0:03:00]}  h6 {[%clk 0:02:55]} 8. Bh4 {[%clk 0:02:59]}  b6 {[%clk 0:02:55]} 9. Nf3 {[%clk 0:02:50]}  Bb7 {[%clk 0:02:55]} 10. O-O {[%clk 0:02:49]}  Nbd7 {[%clk 0:02:54]} 11. Rc1 {[%clk 0:02:47]}  a6 {[%clk 0:02:52]} 12. Qc2 {[%clk 0:02:39]}  c5 {[%clk 0:02:50]} 13. dxc5 {[%clk 0:02:35]}  bxc5 {[%clk 0:02:49]} 14. Rfd1 {[%clk 0:02:35]}  Re8 {[%clk 0:02:38]} 15. Bf1 {[%clk 0:02:33]}  Qa5 {[%clk 0:02:34]} 16. a3 {[%clk 0:02:22]}  Rac8 {[%clk 0:02:34]} 17. Qa4 {[%clk 0:01:55]}  Qb6 {[%clk 0:02:30]} 18. b4 {[%clk 0:01:24]}  cxb4 {[%clk 0:02:09]} 19. axb4 {[%clk 0:01:24]}  Qxb4 {[%clk 0:02:07]} 20. Qxb4 {[%clk 0:01:18]}  Bxb4 {[%clk 0:02:08]} 21. Ne2 {[%clk 0:01:17]}  a5 {[%clk 0:02:00]} 22. Ned4 {[%clk 0:01:17]}  Ne4 {[%clk 0:01:56]} 23. Bb5 {[%clk 0:01:14]}  Nec5 {[%clk 0:01:24]} 24. Nf5 {[%clk 0:01:02]}  Ra8 {[%clk 0:00:21]} 25. Nd6 {[%clk 0:00:45]}  Reb8 {[%clk 0:00:22]} 26. Nxb7 {[%clk 0:00:45]}  Rxb7 {[%clk 0:00:22]} 27. Bc6 {[%clk 0:00:46]}  Rba7 {[%clk 0:00:21]} 28. Bxa8 {[%clk 0:00:46]}  Rxa8 {[%clk 0:00:22]} 29. Rxd5 {[%clk 0:00:44]}  a4 {[%clk 0:00:22]} 30. Be7 {[%clk 0:00:27]}  a3 {[%clk 0:00:20]} 31. Bxc5 {[%clk 0:00:26]}  Nxc5 {[%clk 0:00:19]} 32. Ra1 {[%clk 0:00:15]}  Nb3 {[%clk 0:00:13]} 33. Rdd1 {[%clk 0:00:08]}  Nxa1 {[%clk 0:00:13]} 34. Rxa1 {[%clk 0:00:09]}  a2 {[%clk 0:00:13]} 0-1


[Site "https://www.chess.com"]

[Event "Late Titled Tuesday Blitz February 8 2022"]
[White "Riehle, Marco"]
[Black "Krstulovic, Alex"]
[WhiteFideId "12904392"]
[BlackFideId "760056"]
[WhiteElo "2462"]
[BlackElo "2193"]
[Result "1-0"]
[Round "08"]
[TimeControl "180+1"]
[Date "2022.02.09"]
[WhiteClock "0:01:40"]
[BlackClock "0:00:09"]

1. e4 {[%clk 0:03:00]}  c5 {[%clk 0:02:59]} 2. a3 {[%clk 0:02:59]}  g6 {[%clk 0:02:58]} 3. h4 {[%clk 0:02:58]}  h5 {[%clk 0:02:51]} 4. Nc3 {[%clk 0:02:57]}  Bg7 {[%clk 0:02:51]} 5. Bc4 {[%clk 0:02:56]}  Nc6 {[%clk 0:02:51]} 6. d3 {[%clk 0:02:54]}  d6 {[%clk 0:02:51]} 7. Nf3 {[%clk 0:02:49]}  Bg4 {[%clk 0:02:50]} 8. Bg5 {[%clk 0:02:48]}  Ne5 {[%clk 0:02:43]} 9. Bb5+ {[%clk 0:02:46]}  Kf8 {[%clk 0:02:43]} 10. Nxe5 {[%clk 0:02:39]}  Bxd1 {[%clk 0:01:49]} 11. Nd7+ {[%clk 0:02:35]}  Qxd7 {[%clk 0:01:48]} 12. Bxd7 {[%clk 0:02:36]}  Bxc2 {[%clk 0:01:48]} 13. Kd2 {[%clk 0:02:35]}  Bb3 {[%clk 0:01:48]} 14. Bh3 {[%clk 0:02:32]}  Bh6 {[%clk 0:01:40]} 15. Rac1 {[%clk 0:02:29]}  a6 {[%clk 0:01:36]} 16. Be3 {[%clk 0:02:20]}  Be6 {[%clk 0:01:27]} 17. Bxe6 {[%clk 0:02:18]}  fxe6 {[%clk 0:01:28]} 18. b4 {[%clk 0:02:16]}  cxb4 {[%clk 0:01:13]} 19. axb4 {[%clk 0:02:17]}  Bxe3+ {[%clk 0:01:09]} 20. fxe3 {[%clk 0:02:15]}  Nf6 {[%clk 0:01:07]} 21. Na4 {[%clk 0:02:06]}  Kf7 {[%clk 0:01:07]} 22. Rc7 {[%clk 0:02:05]}  Rab8 {[%clk 0:00:55]} 23. Nb6 {[%clk 0:02:03]}  Rhd8 {[%clk 0:00:50]} 24. Rf1 {[%clk 0:02:01]}  e5 {[%clk 0:00:41]} 25. Nd7 {[%clk 0:01:59]}  Ke6 {[%clk 0:00:30]} 26. Nxb8 {[%clk 0:01:55]}  Rxb8 {[%clk 0:00:30]} 27. Rfc1 {[%clk 0:01:55]}  Rg8 {[%clk 0:00:12]} 28. Rxb7 {[%clk 0:01:52]}  g5 {[%clk 0:00:12]} 29. Rcc7 {[%clk 0:01:52]}  d5 {[%clk 0:00:11]} 30. Rxe7+ {[%clk 0:01:42]}  Kd6 {[%clk 0:00:11]} 31. Rf7 {[%clk 0:01:42]}  Ne8 {[%clk 0:00:09]} 32. Rb6# {[%clk 0:01:40]} 1-0


[Site "https://www.chess.com"]